[Event "Championnat d'Europe Rapide"]
[Date "2024.12.07"]
[White "Guliyev, Namig"]
[Black "Trapp, Maximilian"]
[WhiteElo "2484"]
[BlackElo "2050"]
[Round "2.36"]
[Result "1-0"]
[TimeControl "900+10"]

1. e4 {[%emt 00:12:13] [%clk 00:15:18]} d5 {[%emt 00:00:03] [%clk 00:15:18]} 2.
exd5 {[%emt 00:00:03] [%clk 00:15:26]} Nf6 {[%clk 00:15:26]} 3. d4 {[%emt
00:00:02] [%clk 00:15:34]} Nxd5 {[%emt 00:00:02] [%clk 00:15:34]} 4. Nf3 {[%emt
00:00:02] [%clk 00:15:41]} c6 {[%emt 00:00:08] [%clk 00:15:37]} 5. c4 {[%emt
00:00:11] [%clk 00:15:40]} Nf6 {[%emt 00:00:02] [%clk 00:15:44]} 6. h3 {[%emt
00:00:03] [%clk 00:15:48]} Bf5 {[%emt 00:00:07] [%clk 00:15:47]} 7. Nc3 {[%emt
00:00:03] [%clk 00:15:55]} h6 {[%emt 00:00:40] [%clk 00:15:17]} 8. d5 {[%emt
00:01:16] [%clk 00:14:48]} g6 {[%emt 00:02:11] [%clk 00:13:17]} 9. Nd4 {[%emt
00:01:08] [%clk 00:13:51]} Bd7 {[%emt 00:00:10] [%clk 00:13:17]} 10. Bf4 {[%emt
00:00:45] [%clk 00:13:15]} Bg7 {[%emt 00:00:21] [%clk 00:13:06]} 11. Qd2 {[%emt
00:00:02] [%clk 00:13:23]} g5 {[%emt 00:04:43] [%clk 00:08:33]} 12. Be3 {[%emt
00:00:19] [%clk 00:13:14]} cxd5 {[%emt 00:01:33] [%clk 00:07:10]} 13. cxd5
{[%emt 00:00:02] [%clk 00:13:21]} Na6 {[%emt 00:00:12] [%clk 00:07:09]} 14. Bxa6
{[%emt 00:01:44] [%clk 00:11:47]} bxa6 {[%emt 00:00:02] [%clk 00:07:17]} 15. O-O
{[%emt 00:00:02] [%clk 00:11:54]} O-O {[%emt 00:00:03] [%clk 00:07:24]} 16. Rfe1
{[%emt 00:00:03] [%clk 00:12:01]} Re8 {[%emt 00:00:23] [%clk 00:07:12]} 17. Rad1
{[%emt 00:00:36] [%clk 00:11:34]} Qb8 {[%emt 00:00:31] [%clk 00:06:51]} 18. Nb3
{[%emt 00:00:16] [%clk 00:11:27]} Bf5 {[%emt 00:00:18] [%clk 00:06:44]} 19. Bd4
{[%emt 00:00:12] [%clk 00:11:25]} Qc7 {[%emt 00:00:43] [%clk 00:06:11]} 20. Be5
{[%emt 00:00:09] [%clk 00:11:26]} Qb6 {[%emt 00:00:40] [%clk 00:05:42]} 21. Nd4
{[%emt 00:00:25] [%clk 00:11:11]} Bd7 {[%emt 00:00:40] [%clk 00:05:11]} 22. Qe2
{[%emt 00:00:55] [%clk 00:10:26]} Rac8 {[%emt 00:00:42] [%clk 00:04:40]} 23. Rd2
{[%emt 00:00:10] [%clk 00:10:27]} Qa5 {[%emt 00:00:23] [%clk 00:04:27]} 24. Qf3
{[%emt 00:00:17] [%clk 00:10:19]} Nh7 {[%emt 00:00:59] [%clk 00:03:38]} 25. Bxg7
{[%emt 00:00:46] [%clk 00:09:44]} Kxg7 {[%emt 00:00:01] [%clk 00:03:46]} 26.
Rde2 {[%emt 00:00:01] [%clk 00:09:52]} Qb4 {[%emt 00:00:13] [%clk 00:03:44]} 27.
Nf5+ {[%emt 00:01:20] [%clk 00:08:43]} Bxf5 {[%emt 00:00:11] [%clk 00:03:42]}
28. Qxf5 {[%emt 00:00:02] [%clk 00:08:51]} Nf6 {[%emt 00:00:07] [%clk 00:03:46]}
29. g3 {[%emt 00:00:53] [%clk 00:08:07]} Rcd8 {[%emt 00:00:12] [%clk 00:03:44]}
30. a3 {[%emt 00:00:12] [%clk 00:08:05]} Qb7 {[%emt 00:00:15] [%clk 00:03:39]}
31. Qe5 {[%emt 00:00:31] [%clk 00:07:44]} Kg6 {[%emt 00:00:19] [%clk 00:03:30]}
32. Rd1 {[%emt 00:00:10] [%clk 00:07:44]} Qd7 {[%emt 00:00:10] [%clk 00:03:30]}
33. Kg2 {[%emt 00:00:35] [%clk 00:07:19]} Qd6 {[%emt 00:00:22] [%clk 00:03:19]}
34. Qe3 {[%emt 00:00:23] [%clk 00:07:06]} Qb6 {[%emt 00:00:02] [%clk 00:03:28]}
35. Rd4 {[%emt 00:00:25] [%clk 00:06:51]} Rd7 {[%emt 00:00:07] [%clk 00:03:31]}
36. b4 {[%emt 00:01:21] [%clk 00:05:40]} Red8 {[%emt 00:00:04] [%clk 00:03:36]}
37. Red2 {[%emt 00:00:27] [%clk 00:05:23]} Qb7 {[%emt 00:00:49] [%clk 00:02:57]}
38. Kh2 {[%emt 00:00:16] [%clk 00:05:17]} a5 {[%emt 00:00:14] [%clk 00:02:54]}
39. bxa5 {[%emt 00:00:08] [%clk 00:05:19]} Qb3 {[%emt 00:00:06] [%clk 00:02:57]}
40. a4 {[%emt 00:00:41] [%clk 00:04:49]} Kg7 {[%emt 00:00:12] [%clk 00:02:55]}
41. R2d3 {[%emt 00:00:30] [%clk 00:04:29]} Qb2 {[%emt 00:00:09] [%clk 00:02:56]}
42. Kg1 {[%emt 00:00:22] [%clk 00:04:16]} Qa1+ {[%emt 00:00:02] [%clk 00:03:05]}
43. Kg2 {[%emt 00:00:01] [%clk 00:04:24]} Qb2 {[%emt 00:00:05] [%clk 00:03:10]}
44. Qe5 {[%emt 00:01:19] [%clk 00:03:16]} Rc8 {[%emt 00:00:25] [%clk 00:02:55]}
45. Ne4 {[%emt 00:00:39] [%clk 00:02:46]} Rc2 {[%emt 00:00:19] [%clk 00:02:47]}
46. Rf3 {[%emt 00:00:09] [%clk 00:02:46]} Rc4 {[%emt 00:01:14] [%clk 00:01:43]}
47. Nxf6 {[%emt 00:00:09] [%clk 00:02:46]} Qxd4 {[%emt 00:00:23] [%clk
00:01:31]} 48. Nxd7+ {[%emt 00:00:06] [%clk 00:02:50]} 1-0

[Site "Europe Echecs"]

[Event "Championnat d'Europe Rapide"]
[Date "2024.12.07"]
[White "Mikluc, Davorin"]
[Black "Stojanovski, Dejan"]
[WhiteElo "2232"]
[BlackElo "2407"]
[Round "2.37"]
[Result "0-1"]
[TimeControl "900+10"]

1. e4 {[%emt 00:00:02] [%clk 00:15:17]} d6 {[%emt 00:00:01] [%clk 00:15:19]} 2.
d4 {[%emt 00:00:03] [%clk 00:15:26]} Nf6 {[%clk 00:15:27]} 3. Bd3 {[%emt
00:00:02] [%clk 00:15:34]} e5 {[%emt 00:00:01] [%clk 00:15:36]} 4. d5 {[%emt
00:00:27] [%clk 00:15:17]} Be7 {[%emt 00:00:14] [%clk 00:15:31]} 5. c4 {[%emt
00:00:03] [%clk 00:15:25]} Na6 {[%emt 00:00:22] [%clk 00:15:19]} 6. Nc3 {[%emt
00:00:02] [%clk 00:15:33]} O-O {[%emt 00:00:04] [%clk 00:15:25]} 7. h3 {[%emt
00:00:20] [%clk 00:15:23]} c6 {[%emt 00:00:06] [%clk 00:15:29]} 8. Be3 {[%emt
00:00:19] [%clk 00:15:13]} Nc5 {[%emt 00:01:16] [%clk 00:14:23]} 9. Bc2 {[%emt
00:00:05] [%clk 00:15:17]} a5 {[%emt 00:00:13] [%clk 00:14:20]} 10. Nf3 {[%emt
00:00:06] [%clk 00:15:21]} cxd5 {[%emt 00:00:18] [%clk 00:14:12]} 11. cxd5
{[%emt 00:00:03] [%clk 00:15:29]} b6 {[%emt 00:00:32] [%clk 00:13:50]} 12. O-O
{[%emt 00:00:02] [%clk 00:15:36]} Ba6 {[%emt 00:00:01] [%clk 00:13:59]} 13. Re1
{[%clk 00:15:45]} Rc8 {[%emt 00:00:05] [%clk 00:14:05]} 14. Rc1 {[%emt 00:00:02]
[%clk 00:15:54]} b5 {[%emt 00:00:09] [%clk 00:14:05]} 15. Bxc5 {[%emt 00:00:09]
[%clk 00:15:55]} Rxc5 {[%emt 00:00:02] [%clk 00:14:13]} 16. Bd3 {[%emt 00:00:22]
[%clk 00:15:43]} Qb6 {[%emt 00:01:14] [%clk 00:13:09]} 17. Ne2 {[%emt 00:00:18]
[%clk 00:15:35]} Nd7 {[%emt 00:01:09] [%clk 00:12:10]} 18. Ng3 {[%emt 00:00:08]
[%clk 00:15:36]} g6 {[%emt 00:00:07] [%clk 00:12:14]} 19. Qd2 {[%emt 00:00:04]
[%clk 00:15:42]} Rfc8 {[%emt 00:00:12] [%clk 00:12:12]} 20. Nh2 {[%emt 00:00:52]
[%clk 00:15:00]} Bh4 {[%emt 00:01:12] [%clk 00:11:11]} 21. Nhf1 {[%emt 00:02:13]
[%clk 00:12:57]} Rxc1 {[%emt 00:00:30] [%clk 00:10:51]} 22. Rxc1 {[%emt
00:00:02] [%clk 00:13:05]} Rxc1 {[%emt 00:00:01] [%clk 00:11:00]} 23. Qxc1
{[%emt 00:00:01] [%clk 00:13:14]} Nc5 {[%emt 00:00:08] [%clk 00:11:02]} 24. Be2
{[%emt 00:00:15] [%clk 00:13:09]} Qd8 {[%emt 00:00:08] [%clk 00:11:05]} 25. Qd2
{[%emt 00:00:27] [%clk 00:12:51]} Bg5 {[%emt 00:00:17] [%clk 00:10:58]} 26. Qe1
{[%emt 00:00:32] [%clk 00:12:29]} h5 {[%emt 00:00:13] [%clk 00:10:55]} 27. b4
{[%emt 00:03:18] [%clk 00:09:22]} axb4 {[%emt 00:00:51] [%clk 00:10:14]} 28.
Qxb4 {[%emt 00:00:01] [%clk 00:09:31]} h4 {[%emt 00:00:21] [%clk 00:10:02]} 29.
Nh1 {[%emt 00:00:02] [%clk 00:09:40]} Qb6 {[%emt 00:00:05] [%clk 00:10:07]} 30.
Nh2 {[%emt 00:00:40] [%clk 00:09:09]} Kg7 {[%emt 00:00:13] [%clk 00:10:04]} 31.
Nf3 {[%emt 00:00:10] [%clk 00:09:09]} Bd8 {[%emt 00:00:09] [%clk 00:10:05]} 32.
g3 {[%emt 00:00:06] [%clk 00:09:13]} Qa5 {[%emt 00:00:14] [%clk 00:10:01]} 33.
Qb1 {[%emt 00:02:59] [%clk 00:06:23]} Qa4 {[%emt 00:00:18] [%clk 00:09:53]} 34.
Nd2 {[%emt 00:01:30] [%clk 00:05:03]} Bg5 {[%emt 00:01:49] [%clk 00:08:15]} 35.
Nf3 {[%emt 00:00:34] [%clk 00:04:39]} Bh6 {[%emt 00:01:25] [%clk 00:07:00]} 36.
g4 {[%emt 00:01:42] [%clk 00:03:07]} Bf4 {[%emt 00:00:03] [%clk 00:07:07]} 37.
Nxh4 {[%emt 00:00:49] [%clk 00:02:27]} Qxe4 {[%emt 00:00:55] [%clk 00:06:22]}
38. Qxe4 {[%emt 00:00:59] [%clk 00:01:38]} Nxe4 {[%emt 00:00:01] [%clk
00:06:31]} 39. a4 {[%clk 00:01:48]} Nc3 {[%emt 00:00:03] [%clk 00:06:39]} 40.
axb5 {[%emt 00:00:02] [%clk 00:01:56]} Nxe2+ {[%emt 00:00:01] [%clk 00:06:47]}
0-1

[Site "Europe Echecs"]

[Event "Championnat d'Europe Rapide"]
[Date "2024.12.07"]
[White "Baidetskyi, Valentin"]
[Black "Veleski, Robert"]
[WhiteElo "2519"]
[BlackElo "2093"]
[Round "2.38"]
[Result "1-0"]
[TimeControl "900+10"]

1. e4 {[%emt 00:00:02] [%clk 00:15:17]} e5 {[%emt 00:00:20] [%clk 00:15:00]} 2.
Bc4 {[%emt 00:00:03] [%clk 00:15:24]} Nc6 {[%emt 00:00:02] [%clk 00:15:08]} 3.
Nf3 {[%emt 00:00:02] [%clk 00:15:33]} Bc5 {[%emt 00:00:06] [%clk 00:15:12]} 4.
c3 {[%emt 00:00:03] [%clk 00:15:40]} Nf6 {[%emt 00:00:05] [%clk 00:15:17]} 5. d4
{[%emt 00:00:02] [%clk 00:15:48]} exd4 {[%emt 00:00:06] [%clk 00:15:21]} 6. e5
{[%emt 00:00:02] [%clk 00:15:57]} d5 {[%emt 00:00:04] [%clk 00:15:26]} 7. Be2
{[%emt 00:00:02] [%clk 00:16:05]} Ne4 {[%emt 00:00:18] [%clk 00:15:18]} 8. cxd4
{[%emt 00:00:02] [%clk 00:16:13]} Bb4+ {[%emt 00:00:19] [%clk 00:15:09]} 9. Bd2
{[%emt 00:00:02] [%clk 00:16:21]} Nxd2 {[%emt 00:00:22] [%clk 00:14:56]} 10.
Nbxd2 {[%emt 00:00:02] [%clk 00:16:29]} O-O {[%emt 00:00:03] [%clk 00:15:03]}
11. O-O {[%emt 00:00:03] [%clk 00:16:36]} f6 {[%emt 00:00:24]} 12. Nb3 {[%clk
00:16:33]} Bg4 {[%emt 00:00:24] [%clk 00:14:46]} 13. h3 {[%emt 00:00:12] [%clk
00:16:33]} Bh5 {[%emt 00:00:13] [%clk 00:14:42]} 14. Rc1 {[%emt 00:00:09] [%clk
00:16:35]} fxe5 {[%emt 00:01:18] [%clk 00:13:34]} 15. dxe5 {[%emt 00:00:15]
[%clk 00:16:29]} Kh8 {[%emt 00:00:34] [%clk 00:13:10]} 16. Nfd4 {[%emt 00:01:45]
[%clk 00:14:55]} Nxd4 {[%emt 00:01:08] [%clk 00:12:12]} 17. Nxd4 {[%emt
00:00:06] [%clk 00:14:59]} Bxe2 {[%emt 00:00:23] [%clk 00:11:59]} 18. Qxe2
{[%emt 00:00:05] [%clk 00:15:03]} Qe7 {[%emt 00:00:13] [%clk 00:11:57]} 19. Nb3
{[%emt 00:03:33] [%clk 00:11:40]} Rae8 {[%emt 00:01:51] [%clk 00:10:15]} 20. f4
{[%emt 00:00:34] [%clk 00:11:16]} c6 {[%emt 00:00:36] [%clk 00:09:49]} 21. Qf2
{[%emt 00:00:35] [%clk 00:10:51]} Qc7 {[%emt 00:00:21] [%clk 00:09:38]} 22. Qxa7
{[%emt 00:03:05] [%clk 00:07:56]} Ra8 {[%emt 00:00:10] [%clk 00:09:38]} 23. Qd4
{[%emt 00:00:06] [%clk 00:08:01]} Be7 {[%emt 00:00:02] [%clk 00:09:46]} 24. a3
{[%emt 00:00:21] [%clk 00:07:50]} Qd7 {[%emt 00:00:37] [%clk 00:09:20]} 25. Kh2
{[%emt 00:01:20] [%clk 00:06:40]} b6 {[%emt 00:01:56] [%clk 00:07:34]} 26. Qxb6
{[%emt 00:00:37] [%clk 00:06:13]} Rfb8 {[%emt 00:00:02] [%clk 00:07:42]} 27. Qe3
{[%emt 00:00:05] [%clk 00:06:17]} Qb7 {[%emt 00:00:08] [%clk 00:07:45]} 28. Rc3
{[%emt 00:00:16] [%clk 00:06:11]} Ra4 {[%emt 00:00:06] [%clk 00:07:49]} 29. Nc5
{[%emt 00:00:39] [%clk 00:05:42]} Bxc5 {[%emt 00:00:08] [%clk 00:07:52]} 30.
Qxc5 {[%emt 00:00:04] [%clk 00:05:48]} d4 {[%emt 00:00:59] [%clk 00:07:03]} 31.
Rg3 {[%emt 00:01:04] [%clk 00:04:54]} Qf7 {[%emt 00:00:11] [%clk 00:07:02]} 32.
b4 {[%emt 00:00:31] [%clk 00:04:33]} Rd8 {[%emt 00:00:41] [%clk 00:06:31]} 33.
f5 {[%emt 00:00:24] [%clk 00:04:19]} Ra7 {[%emt 00:00:25] [%clk 00:06:16]} 34.
f6 {[%emt 00:00:08] [%clk 00:04:21]} gxf6 {[%emt 00:00:44] [%clk 00:05:42]} 35.
exf6 {[%emt 00:00:47] [%clk 00:03:45]} d3 {[%emt 00:00:23] [%clk 00:05:30]} 36.
Rg7 {[%emt 00:00:10] [%clk 00:03:44]} 1-0

[Site "Europe Echecs"]

[Event "Championnat d'Europe Rapide"]
[Date "2024.12.07"]
[White "Radeva, Viktoria"]
[Black "Dragnev, Valentin"]
[WhiteElo "2275"]
[BlackElo "2563"]
[Round "2.39"]
[Result "0-1"]
[TimeControl "900+10"]

1. e4 {[%emt 00:00:02] [%clk 00:15:17]} c6 {[%emt 00:00:04] [%clk 00:15:18]} 2.
Nc3 {[%emt 00:00:09] [%clk 00:15:16]} d5 {[%emt 00:00:02] [%clk 00:15:26]} 3.
Nf3 {[%emt 00:00:01] [%clk 00:15:25]} Bg4 {[%emt 00:00:02] [%clk 00:15:34]} 4.
h3 {[%emt 00:00:14] [%clk 00:15:21]} Bxf3 {[%emt 00:00:03] [%clk 00:15:41]} 5.
Qxf3 {[%emt 00:00:02] [%clk 00:15:29]} e6 {[%emt 00:00:01] [%clk 00:15:50]} 6.
Be2 {[%emt 00:00:07] [%clk 00:15:32]} d4 {[%emt 00:00:12] [%clk 00:15:48]} 7.
Nb1 {[%emt 00:00:04] [%clk 00:15:38]} Ne7 {[%emt 00:00:04] [%clk 00:15:54]} 8.
d3 {[%emt 00:00:17] [%clk 00:15:32]} Ng6 {[%emt 00:00:02] [%clk 00:16:01]} 9.
O-O {[%emt 00:01:18] [%clk 00:14:24]} h5 {[%emt 00:01:21] [%clk 00:14:50]} 10.
g3 {[%emt 00:00:44] [%clk 00:13:51]} h4 {[%emt 00:00:19] [%clk 00:14:41]} 11. g4
{[%emt 00:00:02] [%clk 00:13:59]} Bd6 {[%emt 00:00:06] [%clk 00:14:44]} 12. c3
{[%emt 00:00:27] [%clk 00:13:42]} c5 {[%emt 00:00:39] [%clk 00:14:16]} 13. a4
{[%emt 00:00:47] [%clk 00:13:05]} Nc6 {[%emt 00:00:09] [%clk 00:14:17]} 14. Na3
{[%emt 00:00:29] [%clk 00:12:46]} O-O {[%emt 00:00:29] [%clk 00:13:57]} 15. Bd2
{[%emt 00:02:37] [%clk 00:10:19]} a6 {[%emt 00:00:34] [%clk 00:13:33]} 16. Nc4
{[%emt 00:01:05] [%clk 00:09:25]} Bc7 {[%emt 00:00:32] [%clk 00:13:11]} 17. Qg2
{[%emt 00:01:42] [%clk 00:07:52]} b5 {[%emt 00:01:19] [%clk 00:12:02]} 18. Na3
{[%emt 00:00:22] [%clk 00:07:40]} dxc3 {[%emt 00:00:15] [%clk 00:11:57]} 19.
bxc3 {[%emt 00:00:04] [%clk 00:07:46]} b4 {[%emt 00:00:08] [%clk 00:12:00]} 20.
cxb4 {[%emt 00:00:14] [%clk 00:07:42]} cxb4 {[%emt 00:00:07] [%clk 00:12:02]}
21. Nc4 {[%emt 00:00:14] [%clk 00:07:39]} Bf4 {[%emt 00:01:34] [%clk 00:10:39]}
22. e5 {[%emt 00:01:32] [%clk 00:06:16]} Nd4 {[%emt 00:01:04] [%clk 00:09:45]}
23. Qe4 {[%emt 00:02:32] [%clk 00:03:54]} Qd5 {[%emt 00:01:32] [%clk 00:08:23]}
24. Bd1 {[%emt 00:00:53] [%clk 00:03:11]} Qxe4 {[%emt 00:02:19] [%clk 00:06:14]}
25. dxe4 {[%emt 00:00:02] [%clk 00:03:18]} Bxd2 {[%emt 00:00:02] [%clk
00:06:22]} 26. Nxd2 {[%emt 00:00:06] [%clk 00:03:22]} Nxe5 {[%emt 00:00:03]
[%clk 00:06:29]} 27. f4 {[%emt 00:00:21] [%clk 00:03:12]} Nd3 {[%emt 00:00:02]
[%clk 00:06:37]} 28. a5 {[%emt 00:00:28] [%clk 00:02:54]} Rfd8 {[%emt 00:00:14]
[%clk 00:06:33]} 29. Rb1 {[%emt 00:00:40] [%clk 00:02:24]} Nb5 {[%emt 00:00:46]
[%clk 00:05:57]} 30. Nc4 {[%emt 00:00:24] [%clk 00:02:09]} Nc3 {[%emt 00:00:03]
[%clk 00:06:04]} 31. Ra1 {[%emt 00:00:17] [%clk 00:02:02]} Rd4 {[%emt 00:01:07]
[%clk 00:05:07]} 32. Nb6 {[%emt 00:00:09] [%clk 00:02:03]} Rad8 {[%emt 00:00:02]
[%clk 00:05:16]} 0-1

[Site "Europe Echecs"]

[Event "Championnat d'Europe Rapide"]
[Date "2024.12.07"]
[White "Beerdsen, Thomas"]
[Black "Andonovski, Ljubisa"]
[WhiteElo "2502"]
[BlackElo "2253"]
[Round "2.40"]
[Result "1-0"]
[TimeControl "900+10"]

1. e4 {[%emt 00:00:01] [%clk 00:15:17]} c6 {[%emt 00:00:45] [%clk 00:14:36]} 2.
d4 {[%emt 00:00:02] [%clk 00:15:25]} d5 {[%emt 00:00:02] [%clk 00:14:44]} 3. f3
{[%emt 00:00:01] [%clk 00:15:33]} e6 {[%emt 00:00:04] [%clk 00:14:51]} 4. Nc3
{[%emt 00:00:02] [%clk 00:15:41]} Bb4 {[%emt 00:00:03] [%clk 00:14:58]} 5. Bd2
{[%emt 00:00:02] [%clk 00:15:49]} Ne7 {[%emt 00:00:18] [%clk 00:14:50]} 6. a3
{[%emt 00:00:03] [%clk 00:15:57]} Ba5 {[%emt 00:00:10] [%clk 00:14:49]} 7. Bd3
{[%emt 00:00:03] [%clk 00:16:04]} O-O {[%emt 00:00:37] [%clk 00:14:23]} 8. e5
{[%emt 00:00:11] [%clk 00:16:02]} c5 {[%emt 00:00:47] [%clk 00:13:46]} 9. dxc5
{[%emt 00:00:30] [%clk 00:15:42]} Bxc3 {[%emt 00:00:39] [%clk 00:13:18]} 10.
Bxc3 {[%emt 00:00:04] [%clk 00:15:48]} Nbc6 {[%emt 00:04:53] [%clk 00:08:35]}
11. f4 {[%emt 00:00:32] [%clk 00:15:26]} b6 {[%emt 00:00:40] [%clk 00:08:05]}
12. Nf3 {[%emt 00:01:05] [%clk 00:14:30]} Ng6 {[%emt 00:00:15] [%clk 00:08:00]}
13. g3 {[%emt 00:01:54] [%clk 00:12:47]} bxc5 {[%emt 00:00:12] [%clk 00:07:58]}
14. b3 {[%emt 00:00:06] [%clk 00:12:51]} a5 {[%emt 00:00:11] [%clk 00:07:57]}
15. Ng5 {[%emt 00:02:21] [%clk 00:10:40]} h6 {[%emt 00:00:57] [%clk 00:07:10]}
16. h4 {[%emt 00:00:41] [%clk 00:10:08]} a4 {[%emt 00:05:41] [%clk 00:01:40]}
17. Qh5 {[%emt 00:01:31] [%clk 00:08:47]} Nce7 {[%emt 00:00:13] [%clk 00:01:37]}
18. Bd2 {[%emt 00:04:09]} axb3 {[%clk 00:01:26]} 19. cxb3 {[%emt 00:00:02] [%clk
00:05:17]} Ba6 {[%emt 00:00:08] [%clk 00:01:28]} 20. Nxe6 {[%emt 00:00:07] [%clk
00:05:19]} fxe6 {[%emt 00:00:07] [%clk 00:01:32]} 21. Bxg6 {[%emt 00:00:03]
[%clk 00:05:27]} Nxg6 {[%emt 00:00:10] [%clk 00:01:32]} 22. Qxg6 {[%emt
00:00:02] [%clk 00:05:35]} Qb6 {[%emt 00:00:07] [%clk 00:01:35]} 23. Qc2 {[%emt
00:01:18] [%clk 00:04:27]} Qb5 {[%emt 00:00:18] [%clk 00:01:27]} 24. Kf2 {[%emt
00:00:35] [%clk 00:04:02]} Qe2+ {[%emt 00:00:08] [%clk 00:01:28]} 25. Kg1 {[%emt
00:00:01] [%clk 00:04:11]} Bd3 {[%emt 00:00:06] [%clk 00:01:33]} 26. Qd1 {[%emt
00:00:07] [%clk 00:04:14]} Qxd1+ {[%emt 00:00:10] [%clk 00:01:34]} 27. Rxd1
{[%emt 00:00:01] [%clk 00:04:22]} Bc2 {[%emt 00:00:02] [%clk 00:01:42]} 28. Rc1
{[%emt 00:00:04] [%clk 00:04:28]} Bxb3 {[%emt 00:00:02] [%clk 00:01:49]} 29.
Rxc5 {[%emt 00:00:03] [%clk 00:04:36]} Rxa3 {[%emt 00:00:02] [%clk 00:01:58]}
30. Kf2 {[%emt 00:01:01] [%clk 00:03:45]} Ra2 {[%emt 00:00:09] [%clk 00:01:59]}
31. Ke3 {[%emt 00:00:08] [%clk 00:03:46]} Bc2 {[%emt 00:00:08] [%clk 00:02:01]}
32. Rc1 {[%emt 00:01:03] [%clk 00:02:54]} Be4 {[%emt 00:00:03] [%clk 00:02:09]}
33. Rc8 {[%emt 00:00:22] [%clk 00:02:42]} Ra3+ {[%emt 00:00:05] [%clk 00:02:15]}
34. R8c3 {[%emt 00:00:15] [%clk 00:02:37]} Rfa8 {[%emt 00:00:02] [%clk
00:02:22]} 35. g4 {[%emt 00:00:12] [%clk 00:02:35]} R8a4 {[%emt 00:00:02] [%clk
00:02:30]} 36. Rxa3 {[%emt 00:00:05] [%clk 00:02:40]} Rxa3+ {[%emt 00:00:01]
[%clk 00:02:39]} 37. Bc3 {[%emt 00:00:03] [%clk 00:02:47]} h5 {[%clk 00:02:48]}
38. f5 {[%emt 00:00:41] [%clk 00:02:16]} exf5 {[%emt 00:00:06] [%clk 00:02:53]}
39. e6 {[%emt 00:00:13] [%clk 00:02:13]} hxg4 {[%emt 00:00:19] [%clk 00:02:44]}
40. Kf4 {[%emt 00:00:02] [%clk 00:02:20]} g3 {[%emt 00:00:28] [%clk 00:02:27]}
41. Bd4 {[%emt 00:00:14] [%clk 00:02:17]} Rf3+ {[%emt 00:00:17] [%clk 00:02:19]}
42. Kg5 {[%emt 00:01:02] [%clk 00:01:25]} g2 {[%emt 00:00:31] [%clk 00:01:58]}
43. Rc8+ {[%emt 00:00:11] [%clk 00:01:25]} Kh7 {[%clk 00:02:06]} 44. e7 {[%emt
00:00:11] [%clk 00:01:24]} Rg3+ {[%emt 00:00:43] [%clk 00:01:33]} 45. Kf4 {[%emt
00:00:02] [%clk 00:01:32]} Rg4+ {[%emt 00:01:01] [%clk 00:00:42]} 46. Ke5 {[%emt
00:00:02] [%clk 00:01:40]} Bf3 {[%emt 00:00:23] [%clk 00:00:30]} 47. e8=Q {[%emt
00:00:36] [%clk 00:01:14]} Re4+ {[%emt 00:00:09] [%clk 00:00:30]} 48. Kxf5
{[%emt 00:00:24] [%clk 00:01:01]} Bg4+ {[%emt 00:00:01] [%clk 00:00:38]} 49. Kg5
{[%emt 00:00:02] [%clk 00:01:08]} Bxc8 {[%emt 00:00:04] [%clk 00:00:45]} 50.
Qg6+ {[%clk 00:01:17]} 1-0

[Site "Europe Echecs"]